fUSD/lending_fUSD_20250611
["ID","MTS","AMOUNT","RATE_DAILY","PERIOD"]
[365416506,1749660646530,-490.0,0.00019342,2]
[365416507,1749660646539,-490.0,0.00019342,2]
[365416508,1749660646548,-496.91184305,0.00019342,2]
[365416509,1749660646557,-635.35,0.00019342,2]
[365416510,1749660646567,-490.0,0.00019342,2]
[365416511,1749660646576,-490.0,0.00019342,2]
[365416512,1749660646585,-442.13,0.00019342,2]
[365416513,1749660646595,-163.56,0.00019342,2]
[365416514,1749660646605,-490.0,0.00019342,2]
[365416516,1749660646614,-490.0,0.00019342,2]
[365416517,1749660646625,-490.0,0.00019342,2]
[365416518,1749660646634,-490.0,0.00019342,2]
[365416519,1749660646643,-490.0,0.00019342,2]
[365416520,1749660646652,-532.47,0.00019342,2]
[365416521,1749660646661,-490.0,0.00019342,2]
[365416522,1749660646670,-490.0,0.00019342,2]
[365416523,1749660646679,-490.0,0.00019342,2]
[365416524,1749660646688,-490.0,0.00019342,2]
[365416525,1749660646697,-490.0,0.00019342,2]
[365416526,1749660646707,-490.0,0.00019342,2]
[365416527,1749660646716,-880.05,0.00019342,2]
[365416528,1749660646727,-490.0,0.00019342,2]
[365416529,1749660646736,-490.0,0.00019342,2]
[365416530,1749660646745,-490.0,0.00019342,2]
[365416531,1749660646754,-257.39896605,0.00019342,2]
[365416532,1749660646764,-490.0,0.00019342,2]
[365416533,1749660646773,-795.36,0.00019342,2]
[365416534,1749660646782,-547.48,0.00019342,2]
[365416535,1749660646791,-553.1,0.00019342,2]
[365416536,1749660646800,-490.0,0.00019342,2]
[365416537,1749660646809,-490.0,0.00019342,2]
[365416538,1749660646818,-490.0,0.00019342,2]
[365416539,1749660646826,-490.0,0.00019342,2]
[365416540,1749660646835,-1017.09,0.00019342,2]
[365416541,1749660646845,-706.31,0.00019342,2]
[365416542,1749660646854,-490.0,0.00019342,2]
[365416543,1749660646863,-490.0,0.00019342,2]
[365416544,1749660646872,-490.0,0.00019342,2]
[365416545,1749660646882,-490.0,0.00019342,2]
[365416546,1749660646891,-490.0,0.00019342,2]
[365416547,1749660646900,-504.65,0.00019342,2]
[365416548,1749660646909,-490.0,0.00019342,2]
[365416549,1749660646919,-490.0,0.00019342,2]
[365416550,1749660646928,-490.0,0.00019342,2]
[365416551,1749660646938,-490.0,0.00019342,2]
[365416552,1749660646949,-490.0,0.00019342,2]
[365416553,1749660646959,-490.0,0.00019342,2]
[365416554,1749660646968,-1001.14,0.00019342,2]
[365416555,1749660646977,-380.0,0.00019342,2]
[365416556,1749660646986,-1022.13,0.00019342,2]
[365416557,1749660646995,-781.4,0.00019342,2]
[365416558,1749660647004,-490.0,0.00019342,2]
[365416559,1749660647013,-490.0,0.00019342,2]
[365416560,1749660647022,-490.0,0.00019342,2]
[365416561,1749660647032,-490.0,0.00019342,2]
[365416562,1749660647041,-651.77,0.00019342,2]
[365416563,1749660647051,-490.0,0.00019342,2]
[365416564,1749660647060,-490.0,0.00019342,2]
[365416565,1749660647069,-610.0576283,0.00019342,2]
[365416566,1749660647079,-567.20003989,0.00019342,2]
[365416567,1749660647088,-738.41,0.00019342,2]
[365416568,1749660647097,-529.38,0.00019342,2]
[365416569,1749660647106,-450.0,0.00019342,2]
[365416570,1749660647115,-440.0,0.00019342,2]
[365416571,1749660647124,-490.0,0.00019342,2]
[365416573,1749660647133,-490.0,0.00019342,2]
[365416574,1749660647142,-490.0,0.00019342,2]
[365416575,1749660647151,-875.41,0.00019342,2]
[365416576,1749660647159,-490.0,0.00019342,2]
[365416577,1749660647168,-490.0,0.00019342,2]
[365416578,1749660647177,-490.0,0.00019342,2]
[365416579,1749660647185,-490.0,0.00019342,2]
[365416580,1749660647195,-490.0,0.00019342,2]
[365416581,1749660647204,-490.0,0.00019342,2]
[365416582,1749660647216,-496.29,0.00019342,2]
[365416583,1749660647225,-490.0,0.00019342,2]
[365416584,1749660647235,-490.0,0.00019342,2]
[365416585,1749660647244,-490.0,0.00019342,2]
[365416586,1749660647254,-490.0,0.00019342,2]
[365416587,1749660647263,-432.02,0.00019342,2]
[365416588,1749660647272,-526.23,0.00019342,2]
[365416589,1749660647282,-490.0,0.00019342,2]
[365416590,1749660647293,-636.01,0.00019342,2]
[365416591,1749660647302,-490.0,0.00019342,2]
[365416592,1749660647312,-490.0,0.00019342,2]
[365416593,1749660647321,-610.84,0.00019342,2]
[365416594,1749660647330,-490.0,0.00019342,2]
[365416595,1749660647339,-490.0,0.00019342,2]
[365416596,1749660647349,-490.0,0.00019342,2]
[365416597,1749660647358,-271.14225116,0.00019342,2]
[365416598,1749660647369,-542.93,0.00019342,2]
[365416599,1749660647379,-490.0,0.00019342,2]
[365416600,1749660647387,-490.0,0.00019342,2]
[365416601,1749660647397,-1076.9,0.00019342,2]
[365416602,1749660647407,-490.0,0.00019342,2]
[365416603,1749660647417,-490.0,0.00019342,2]
[365416604,1749660647427,-490.0,0.00019342,2]
[365416605,1749660647436,-490.0,0.00019342,2]
[365416606,1749660647445,-841.76,0.00019342,2]
[365416607,1749660647454,-490.0,0.00019342,2]
[365416608,1749660647465,-490.0,0.00019342,2]
[365416609,1749660647475,-490.0,0.00019342,2]
[365416610,1749660647484,-490.0,0.00019342,2]
[365416611,1749660647493,-490.0,0.00019342,2]
[365416612,1749660647503,-490.0,0.00019342,2]
[365416613,1749660647511,-490.0,0.00019342,2]
[365416614,1749660647521,-490.0,0.00019342,2]
[365416615,1749660647531,-490.0,0.00019342,2]
[365416616,1749660647540,-618.77,0.00019342,2]
[365416617,1749660647549,-490.0,0.00019342,2]
[365416618,1749660647559,-504.17334443,0.00019342,2]
[365416619,1749660647568,-490.0,0.00019342,2]
[365416620,1749660647577,-490.0,0.00019342,2]
[365416621,1749660647587,-610.24,0.00019342,2]
[365416622,1749660647596,-490.0,0.00019342,2]
[365416623,1749660647605,-490.0,0.00019342,2]
[365416624,1749660647614,-262.27798566,0.00019342,2]
[365416625,1749660647623,-490.0,0.00019342,2]
[365416626,1749660647633,-490.0,0.00019342,2]
[365416627,1749660647642,-490.0,0.00019342,2]
[365416628,1749660647651,-470.0,0.00019342,2]
[365416629,1749660647660,-572.15,0.00019342,2]
[365416630,1749660647669,-490.0,0.00019342,2]
[365416631,1749660647678,-490.0,0.00019342,2]
[365416632,1749660647688,-314.10866489,0.00019342,2]
[365416633,1749660647697,-337.39449011,0.00019342,2]
[365416634,1749660647706,-490.0,0.00019342,2]
[365416635,1749660647715,-490.0,0.00019342,2]
[365416636,1749660647725,-480.0,0.00019342,2]
[365416637,1749660647734,-490.0,0.00019342,2]
[365416638,1749660647744,-490.0,0.00019342,2]
[365416639,1749660647753,-604.9,0.00019342,2]
[365416640,1749660647763,-490.0,0.00019342,2]
[365416641,1749660647773,-1368.39,0.00019342,2]
[365416642,1749660647782,-490.0,0.00019342,2]
[365416643,1749660647792,-564.27,0.00019342,2]
[365416644,1749660647801,-589.3,0.00019342,2]
[365416645,1749660647810,-403.08241276,0.00019342,2]
[365416646,1749660647819,-490.0,0.00019342,2]
[365416647,1749660647829,-490.0,0.00019342,2]
[365416648,1749660647839,-490.0,0.00019342,2]
[365416649,1749660647848,-490.0,0.00019342,2]
[365416650,1749660647858,-490.0,0.00019342,2]
[365416651,1749660647867,-703.44,0.00019342,2]
[365416652,1749660647876,-490.0,0.00019342,2]
[365416653,1749660647886,-501.05,0.00019342,2]
[365416654,1749660647896,-493.75,0.00019342,2]
[365416655,1749660647905,-635.51520127,0.00019342,2]
[365416656,1749660647915,-490.0,0.00019342,2]
[365416657,1749660647924,-490.0,0.00019342,2]
[365416658,1749660647934,-490.0,0.00019342,2]
[365416659,1749660647943,-490.0,0.00019342,2]
[365416660,1749660647953,-605.8,0.00019342,2]
[365416661,1749660647964,-490.0,0.00019342,2]
[365416662,1749660647973,-490.0,0.00019342,2]
[365416663,1749660647983,-1108.7,0.00019342,2]
[365416664,1749660647992,-490.0,0.00019342,2]
[365416665,1749660648002,-490.0,0.00019342,2]
[365416666,1749660648011,-490.0,0.00019342,2]
[365416667,1749660648020,-250.0,0.00019342,2]
[365416668,1749660648030,-490.0,0.00019342,2]
[365416669,1749660648041,-490.0,0.00019342,2]
[365416670,1749660648050,-490.0,0.00019342,2]
[365416671,1749660648060,-490.0,0.00019342,2]
[365416672,1749660648070,-490.0,0.00019342,2]
[365416673,1749660648080,-490.0,0.00019342,2]
[365416674,1749660648089,-490.0,0.00019342,2]
[365416675,1749660648099,-587.47,0.00019342,2]
[365416676,1749660648108,-490.0,0.00019342,2]
[365416677,1749660648118,-255.75247234,0.00019342,2]
[365416678,1749660648127,-430.0,0.00019342,2]
[365416679,1749660648137,-490.0,0.00019342,2]
[365416680,1749660648147,-490.0,0.00019342,2]
[365416681,1749660648156,-490.0,0.00019342,2]
[365416682,1749660648165,-1252.39,0.00019342,2]
[365416683,1749660648175,-295.68785977,0.00019342,2]
[365416684,1749660648184,-490.0,0.00019342,2]
[365416685,1749660648194,-490.0,0.00019342,2]
[365416686,1749660648203,-2427.27,0.00019342,2]
[365416687,1749660648214,-490.0,0.00019342,2]
[365416688,1749660648224,-490.46,0.00019342,2]
[365416689,1749660648233,-1069.63,0.00019342,2]
[365416690,1749660648243,-490.0,0.00019342,2]
[365416691,1749660648253,-490.0,0.00019342,2]
[365416692,1749660648263,-1490.84,0.00019342,2]
[365416693,1749660648273,-490.0,0.00019342,2]
[365416694,1749660648282,-490.0,0.00019342,2]
[365416695,1749660648295,-490.0,0.00019342,2]
[365416696,1749660648305,-490.0,0.00019342,2]
[365416697,1749660648315,-1929.27,0.00019342,2]
[365416698,1749660648326,-490.0,0.00019342,2]
[365416699,1749660648338,-903.73,0.00019342,2]
[365416700,1749660648348,-205.53,0.00019342,2]
[365416701,1749660648358,-490.0,0.00019342,2]
[365416702,1749660648369,-2370.05,0.00019342,2]
[365416703,1749660648379,-751.31,0.00019342,2]
[365416704,1749660648389,-490.0,0.00019342,2]
[365416705,1749660648398,-4168.24,0.00019342,2]
[365416706,1749660648408,-490.0,0.00019342,2]
[365416707,1749660648418,-490.0,0.00019342,2]
[365416708,1749660648428,-617.74,0.00019342,2]
[365416709,1749660648438,-490.0,0.00019342,2]
[365416710,1749660648448,-2151.44,0.00019342,2]
[365416711,1749660648458,-530.23,0.00019342,2]
[365416712,1749660648469,-630.67,0.00019342,2]
[365416713,1749660648479,-490.0,0.00019342,2]
[365416714,1749660648490,-821.66,0.00019342,2]
[365416715,1749660648499,-3270.35,0.00019342,2]
[365416716,1749660648509,-401.78,0.00019342,2]
[365416717,1749660648519,-509.78,0.00019342,2]
[365416718,1749660648528,-511.03,0.00019342,2]
[365416719,1749660648538,-490.0,0.00019342,2]
[365416720,1749660648548,-1000.0,0.00019342,2]
[365416721,1749660648559,-490.0,0.00019342,2]
[365416722,1749660648569,-517.59,0.00019342,2]
[365416723,1749660648579,-6106.1,0.00019342,2]
[365416724,1749660648589,-490.0,0.00019342,2]
[365416725,1749660648599,-919.46,0.00019342,2]
[365416726,1749660648609,-642.65,0.00019342,2]
[365416727,1749660648618,-490.0,0.00019342,2]
[365416728,1749660648629,-490.0,0.00019342,2]
[365416729,1749660648639,-490.0,0.00019342,2]
[365416730,1749660648648,-503.54,0.00019342,2]
[365416731,1749660648658,-1003.24,0.00019342,2]
[365416732,1749660648667,-490.0,0.00019342,2]
[365416733,1749660648677,-521.67,0.00019342,2]
[365416734,1749660648687,-589.8,0.00019342,2]
[365416735,1749660648697,-855.48,0.00019342,2]
[365416736,1749660648706,-1345.03,0.00019342,2]
[365416737,1749660648717,-834.67,0.00019342,2]
[365416738,1749660648727,-490.0,0.00019342,2]
[365416739,1749660648736,-490.0,0.00019342,2]
[365416740,1749660648746,-490.0,0.00019342,2]
[365416741,1749660648755,-790.05,0.00019342,2]
[365416742,1749660648765,-947.83,0.00019342,2]
[365416743,1749660648775,-512.7,0.00019342,2]
[365416744,1749660648784,-490.0,0.00019342,2]
[365416745,1749660648794,-908.62,0.00019342,2]
[365416746,1749660648803,-764.91,0.00019342,2]
[365416747,1749660648813,-490.0,0.00019342,2]
[365416748,1749660648823,-490.0,0.00019342,2]
[365416749,1749660648832,-490.0,0.00019342,2]
[365416750,1749660648842,-5930.08,0.00019342,2]
[365416751,1749660648852,-334.0669959,0.00019342,2]
[365416752,1749660648862,-1579.69,0.00019342,2]
[365416753,1749660648871,-2917.28,0.00019342,2]
[365416754,1749660648881,-575.18,0.00019342,2]
[365416755,1749660648890,-490.0,0.00019342,2]
[365416756,1749660648900,-1193.27,0.00019342,2]
[365416757,1749660648909,-611.34,0.00019342,2]
[365416758,1749660648919,-490.0,0.00019342,2]
[365416759,1749660648929,-490.89,0.00019342,2]
[365416760,1749660648939,-490.0,0.00019342,2]
[365416761,1749660648948,-549.23,0.00019342,2]
[365416762,1749660648959,-490.0,0.00019342,2]
[365416763,1749660648969,-611.95,0.00019342,2]
[365416764,1749660648978,-936.29,0.00019342,2]
[365416765,1749660648987,-496.94,0.00019342,2]
[365416766,1749660648997,-490.0,0.00019342,2]
[365416767,1749660649007,-490.0,0.00019342,2]
[365416768,1749660649017,-1060.78,0.00019342,2]
[365416769,1749660649026,-662.42,0.00019342,2]
[365416770,1749660649036,-1513.94,0.00019342,2]
[365416771,1749660649045,-3883.39,0.00019342,2]
[365416772,1749660649055,-725.66,0.00019342,2]
[365416773,1749660649065,-995.94,0.00019342,2]
[365416774,1749660649075,-768.41,0.00019342,2]
[365416775,1749660649084,-490.0,0.00019342,2]
[365416776,1749660649094,-490.0,0.00019342,2]
[365416777,1749660649104,-490.0,0.00019342,2]
[365416778,1749660649114,-772.21,0.00019342,2]
[365416779,1749660649123,-490.0,0.00019342,2]
[365416780,1749660649133,-490.0,0.00019342,2]
[365416781,1749660649142,-662.53,0.00019342,2]
[365416782,1749660649152,-490.0,0.00019342,2]
[365416783,1749660649162,-1697.68,0.00019342,2]
[365416784,1749660649172,-537.47,0.00019342,2]
[365416785,1749660649183,-490.0,0.00019342,2]
[365416786,1749660649192,-969.69,0.00019342,2]
[365416787,1749660649201,-490.0,0.00019342,2]
[365416788,1749660649212,-601.27,0.00019342,2]
[365416789,1749660649222,-869.0,0.00019342,2]
[365416790,1749660649232,-490.0,0.00019342,2]
[365416791,1749660649243,-490.0,0.00019342,2]
[365416792,1749660649253,-1413.48,0.00019342,2]
[365416793,1749660649263,-839.04,0.00019342,2]
[365416794,1749660649274,-490.0,0.00019342,2]
[365416795,1749660649284,-490.0,0.00019342,2]
[365416796,1749660649297,-490.0,0.00019342,2]
[365416797,1749660649308,-1879.27,0.00019342,2]
[365416798,1749660649318,-490.0,0.00019342,2]
[365416799,1749660649328,-490.0,0.00019342,2]
[365416800,1749660649339,-490.0,0.00019342,2]
[365416801,1749660649349,-490.0,0.00019342,2]
[365416802,1749660649359,-507.0,0.00019342,2]
[365416803,1749660649371,-490.0,0.00019342,2]
[365416804,1749660649381,-1505.54,0.00019342,2]
[365416805,1749660649391,-490.0,0.00019342,2]
[365416806,1749660649401,-604.78,0.00019342,2]
[365416807,1749660649410,-490.0,0.00019342,2]
[365416808,1749660649420,-626.47,0.00019342,2]
[365416809,1749660649430,-490.0,0.00019342,2]
[365416810,1749660649439,-490.0,0.00019342,2]
[365416811,1749660649449,-420.0,0.00019342,2]
[365416812,1749660649459,-745.95,0.00019342,2]
[365416813,1749660649469,-490.0,0.00019342,2]
[365416814,1749660649479,-1372.55,0.00019342,2]
[365416815,1749660649489,-490.0,0.00019342,2]
[365416816,1749660649498,-490.0,0.00019342,2]
[365416817,1749660649507,-490.0,0.00019342,2]
[365416818,1749660649516,-490.0,0.00019342,2]
[365416819,1749660649526,-562.59,0.00019342,2]
[365416820,1749660649536,-490.0,0.00019342,2]
[365416821,1749660649546,-490.0,0.00019342,2]
[365416822,1749660649555,-513.3,0.00019342,2]
[365416823,1749660649565,-490.0,0.00019342,2]
[365416824,1749660649575,-762.07,0.00019342,2]
[365416825,1749660649585,-1145.54,0.00019342,2]
[365416826,1749660649594,-674.02,0.00019342,2]
[365416827,1749660649604,-490.0,0.00019342,2]
[365416828,1749660649614,-490.0,0.00019342,2]
[365416829,1749660649624,-1474.06,0.00019342,2]
[365416830,1749660649634,-360.0,0.00019342,2]
[365416831,1749660649644,-695.03,0.00019342,2]
[365416832,1749660649653,-490.0,0.00019342,2]
[365416833,1749660649663,-490.0,0.00019342,2]
[365416834,1749660649673,-1017.00083755,0.00019342,2]
[365416835,1749660649684,-6389.33,0.00019342,2]
[365416836,1749660649694,-490.0,0.00019342,2]
[365416837,1749660649703,-657.39,0.00019342,2]
[365416838,1749660649714,-490.0,0.00019342,2]
[365416839,1749660649724,-490.0,0.00019342,2]
[365416840,1749660649735,-490.0,0.00019342,2]
[365416841,1749660649745,-490.0,0.00019342,2]
[365416842,1749660649756,-490.0,0.00019342,2]
[365416843,1749660649766,-490.0,0.00019342,2]
[365416844,1749660649777,-490.0,0.00019342,2]
[365416845,1749660649786,-494.95,0.00019342,2]
[365416846,1749660649796,-490.0,0.00019342,2]
[365416847,1749660649807,-490.0,0.00019342,2]
[365416848,1749660649816,-490.0,0.00019342,2]
[365416849,1749660649827,-479.01064326,0.00019342,2]
[365416850,1749660649836,-805.04,0.00019342,2]
[365416851,1749660649846,-490.0,0.00019342,2]
[365416852,1749660649856,-490.0,0.00019342,2]
[365416853,1749660649866,-511.3,0.00019342,2]
[365416854,1749660649876,-579.91,0.00019342,2]
[365416855,1749660649886,-490.0,0.00019342,2]
[365416856,1749660649896,-490.0,0.00019342,2]
[365416857,1749660649906,-1490.41,0.00019342,2]
[365416858,1749660649916,-739.05,0.00019342,2]
[365416859,1749660649926,-170.18932391,0.00019342,2]
[365416860,1749660650138,-766.16,0.00019342,2]
[365416861,1749660650149,-636.67,0.00019342,2]
[365416862,1749660650159,-1647.2,0.00019342,2]
[365416863,1749660650169,-239.80882968,0.00019342,2]
[365416864,1749660650179,-709.31,0.00019342,2]
[365416865,1749660650188,-785.6,0.00019342,2]
[365416866,1749660650197,-503.8,0.00019342,2]
[365416867,1749660650207,-490.0,0.00019342,2]
[365416868,1749660650218,-490.0,0.00019342,2]
[365416869,1749660650228,-490.0,0.00019342,2]
[365416870,1749660650237,-4761.01,0.00019342,2]
[365416871,1749660650247,-490.0,0.00019342,2]
[365416872,1749660650257,-490.0,0.00019342,2]
[365416873,1749660650266,-490.0,0.00019342,2]
[365416874,1749660650276,-402.83355103,0.00019342,2]
[365416875,1749660650287,-877.3,0.00019342,2]
[365416876,1749660650301,-490.0,0.00019342,2]
[365416877,1749660650310,-490.0,0.00019342,2]
[365416878,1749660650320,-2745.15,0.00019342,2]
[365416879,1749660650329,-490.0,0.00019342,2]
[365416880,1749660650340,-490.0,0.00019342,2]
[365416881,1749660650350,-602.15,0.00019342,2]
[365416882,1749660650359,-490.0,0.00019342,2]
[365416883,1749660650370,-490.0,0.00019342,2]
[365416884,1749660650379,-490.0,0.00019342,2]
[365416885,1749660650389,-490.0,0.00019342,2]
[365416886,1749660650399,-490.0,0.00019342,2]
[365416887,1749660650408,-576.77,0.00019342,2]
[365416888,1749660650417,-1679.04,0.00019342,2]
[365416889,1749660650427,-490.0,0.00019342,2]
[365416890,1749660650436,-1233.32,0.00019342,2]
[365416891,1749660650446,-490.0,0.00019342,2]
[365416892,1749660650455,-652.29,0.00019342,2]
[365416893,1749660650465,-490.0,0.00019342,2]
[365416894,1749660650475,-490.0,0.00019342,2]
[365416895,1749660650486,-490.0,0.00019342,2]
[365416896,1749660650495,-2279.09,0.00019342,2]
[365416897,1749660650505,-440.0,0.00019342,2]
[365416898,1749660650515,-490.0,0.00019342,2]
[365416899,1749660650524,-490.0,0.00019342,2]
[365416900,1749660650534,-490.0,0.00019342,2]
[365416901,1749660650543,-952.05,0.00019342,2]
[365416902,1749660650552,-736.69,0.00019342,2]
[365416903,1749660650563,-490.0,0.00019342,2]
[365416904,1749660650573,-1039.64,0.00019342,2]
[365416905,1749660650582,-490.0,0.00019342,2]
[365416906,1749660650591,-490.0,0.00019342,2]
[365416907,1749660650603,-738.18,0.00019342,2]
[365416908,1749660650612,-490.0,0.00019342,2]
[365416909,1749660650621,-490.0,0.00019342,2]
[365416910,1749660650632,-490.0,0.00019342,2]
[365416911,1749660650641,-789.34,0.00019342,2]
[365416912,1749660650650,-250.81977063,0.00019342,2]
[365416913,1749660650660,-490.0,0.00019342,2]
[365416914,1749660650670,-490.0,0.00019342,2]
[365416915,1749660650680,-490.0,0.00019342,2]
[365416916,1749660650689,-490.0,0.00019342,2]
[365416917,1749660650703,-490.0,0.00019342,2]
[365416918,1749660650715,-490.0,0.00019342,2]
[365416919,1749660650725,-871.69,0.00019342,2]
[365416920,1749660650735,-490.0,0.00019342,2]
[365416921,1749660650746,-811.23,0.00019342,2]
[365416922,1749660650756,-490.0,0.00019342,2]
[365416923,1749660650767,-490.0,0.00019342,2]
[365416924,1749660650777,-360.0,0.00019342,2]
[365416925,1749660650787,-298.9064521,0.00019342,2]
[365416926,1749660650797,-722.34,0.00019342,2]
[365416927,1749660650806,-490.0,0.00019342,2]
[365416928,1749660650816,-1148.06,0.00019342,2]
[365416929,1749660650826,-581.4,0.00019342,2]
[365416930,1749660650836,-490.0,0.00019342,2]
[365416931,1749660650846,-490.0,0.00019342,2]
[365416932,1749660650856,-490.0,0.00019342,2]
[365416933,1749660650866,-490.0,0.00019342,2]
[365416934,1749660650876,-490.0,0.00019342,2]
[365416935,1749660650886,-1840.41,0.00019342,2]
[365416936,1749660650896,-591.85709222,0.00019352,2]
[365416937,1749660650905,-162.03089182,0.00019352,2]
[365416938,1749660650916,-1000.0,0.000194,2]
[365416939,1749660650925,-200.0,0.00019402,6]
[365416940,1749660650935,-420.0,0.00019439,2]
[365416941,1749660650945,-591.85709222,0.00019443,2]
[365416942,1749660650955,-833.29909032,0.00019451,2]
[365416943,1749660650965,-1000.0,0.000195,2]
[365416944,1749660650979,-2006.11,0.00019505,2]
[365416945,1749660650989,-4174.97,0.00019505,2]
[365416946,1749660650999,-500.0,0.00019505,2]
[365416947,1749660651009,-500.0,0.00019505,2]
[365416948,1749660651019,-210.78120438,0.00019506,2]
[365416949,1749660651029,-490.0,0.00019506,2]
[365416950,1749660651039,-490.0,0.00019506,2]
[365416951,1749660651049,-490.0,0.00019506,2]
[365416952,1749660651059,-490.0,0.00019506,2]
[365416953,1749660651069,-490.0,0.00019506,2]
[365416954,1749660651079,-490.0,0.00019506,2]
[365416955,1749660651089,-490.0,0.00019506,2]
[365416956,1749660651099,-490.0,0.00019506,2]
[365416957,1749660651109,-490.0,0.00019506,2]
[365416958,1749660651120,-490.0,0.00019506,2]
[365416959,1749660651130,-490.0,0.00019506,2]
[365416960,1749660651140,-490.0,0.00019506,2]
[365416961,1749660651150,-490.0,0.00019506,2]
[365416962,1749660651159,-490.0,0.00019506,2]
[365416963,1749660651169,-387.80103318,0.00019506,2]
[365416964,1749660651179,-490.0,0.00019506,2]
[365416965,1749660651189,-490.0,0.00019506,2]
[365416966,1749660651199,-490.0,0.00019506,2]
[365416967,1749660651210,-490.0,0.00019506,2]
[365416968,1749660651221,-490.0,0.00019506,2]
[365416969,1749660651231,-490.0,0.00019506,2]
[365416970,1749660651245,-490.0,0.00019506,2]
[365416971,1749660651255,-490.0,0.00019506,2]
[365416972,1749660651266,-490.0,0.00019506,2]
[365416973,1749660651276,-490.0,0.00019506,2]
[365416974,1749660651286,-490.0,0.00019506,2]
[365416975,1749660651300,-490.0,0.00019506,2]
[365416976,1749660651310,-490.0,0.00019506,2]
[365416977,1749660651321,-490.0,0.00019506,2]
[365416978,1749660651331,-490.0,0.00019506,2]
[365416979,1749660651342,-490.0,0.00019506,2]
[365416980,1749660651352,-490.0,0.00019506,2]
[365416981,1749660651362,-490.0,0.00019506,2]
[365416982,1749660651373,-490.0,0.00019506,2]
[365416983,1749660651383,-490.0,0.00019506,2]
[365416984,1749660651392,-490.0,0.00019506,2]
[365416985,1749660651403,-490.0,0.00019506,2]
[365416986,1749660651413,-371.83448273,0.00019506,2]
[365416987,1749660651423,-490.0,0.00019506,2]
[365416988,1749660651433,-490.0,0.00019506,2]
[365416989,1749660651443,-490.0,0.00019506,2]
[365416990,1749660651454,-490.0,0.00019506,2]
[365416991,1749660651465,-490.0,0.00019506,2]
[365416992,1749660651475,-490.0,0.00019506,2]
[365416993,1749660651486,-490.0,0.00019506,2]
[365416994,1749660651495,-490.0,0.00019506,2]
[365416995,1749660651505,-490.0,0.00019506,2]
[365416996,1749660651515,-490.0,0.00019506,2]
[365416997,1749660651526,-490.0,0.00019506,2]
[365416998,1749660651536,-490.0,0.00019506,2]
[365416999,1749660651546,-490.0,0.00019506,2]
[365417000,1749660651556,-490.0,0.00019506,2]
[365417001,1749660651566,-596.801455,0.00019506,2]
[365417002,1749660651576,-490.0,0.00019506,2]
[365417003,1749660651586,-394.52560206,0.00019506,2]
[365417004,1749660651596,-490.0,0.00019506,2]
[365417005,1749660651607,-490.0,0.00019506,2]
[365417006,1749660651616,-490.0,0.00019506,2]
[365417007,1749660651627,-490.0,0.00019506,2]